fUST/lending_fUST_20240301
["ID","MTS","AMOUNT","RATE_DAILY","PERIOD"]
[315870972,1709230247637,-2028.3,0.00020999,2]
[315870973,1709230247646,-2028.50849215,0.00020999,2]
[315870974,1709230247655,-3350.43,0.00020999,2]
[315870975,1709230247665,-3350.43,0.00020999,2]
[315870976,1709230247675,-3350.43,0.00020999,2]
[315870977,1709230247684,-3350.43,0.00020999,2]
[315870978,1709230247694,-3350.43,0.00020999,2]
[315870979,1709230247702,-3350.43,0.00020999,2]
[315870980,1709230247712,-3350.43,0.00020999,2]
[315870981,1709230247721,-3350.43,0.00020999,2]
[315870982,1709230247730,-3350.43,0.00020999,2]
[315870983,1709230247741,-3350.43,0.00020999,2]
[315870984,1709230247753,-787.92,0.00020999,2]
[315870985,1709230247762,-787.92,0.00020999,2]
[315870986,1709230247771,-787.92,0.00020999,2]
[315870987,1709230247780,-787.92,0.00020999,2]
[315870988,1709230247789,-787.92,0.00020999,2]
[315870989,1709230247799,-787.92,0.00020999,2]
[315870990,1709230247808,-633.23,0.00020999,2]
[315870991,1709230247818,-787.92,0.00020999,2]
[315870992,1709230247827,-633.23,0.00020999,2]
[315870993,1709230247836,-787.92,0.00020999,2]
[315870994,1709230247845,-633.23,0.00020999,2]
[315870995,1709230247855,-787.92,0.00020999,2]
[315870996,1709230247864,-788.09,0.00020999,2]
[315870997,1709230247873,-633.23,0.00020999,2]
[315870998,1709230247882,-633.23,0.00020999,2]
[315870999,1709230247891,-633.23,0.00020999,2]
[315871000,1709230247901,-633.23,0.00020999,2]
[315871001,1709230247910,-633.23,0.00020999,2]
[315871002,1709230247919,-633.23,0.00020999,2]
[315871003,1709230247929,-633.23,0.00020999,2]
[315871004,1709230247938,-3350.63154471,0.00020999,2]
[315871005,1709230247947,-633.4348113,0.00020999,2]
[315871006,1709230247956,-1462.24,0.00020999,2]
[315871007,1709230247966,-1462.24,0.00020999,2]
[315871008,1709230247975,-1462.24,0.00020999,2]
[315871009,1709230247985,-1462.24,0.00020999,2]
[315871010,1709230247996,-1462.24,0.00020999,2]
[315871011,1709230248006,-1462.24,0.00020999,2]
[315871012,1709230248015,-1462.24,0.00020999,2]
[315871013,1709230248024,-1462.24,0.00020999,2]
[315871014,1709230248034,-1462.24,0.00020999,2]
[315871015,1709230248043,-1462.24,0.00020999,2]
[315871016,1709230248053,-1462.43284304,0.00020999,2]
[315871017,1709230248062,-737.81,0.00020999,2]
[315871018,1709230248072,-737.81,0.00020999,2]
[315871019,1709230248082,-737.81,0.00020999,2]
[315871020,1709230248091,-737.81,0.00020999,2]
[315871021,1709230248100,-737.81,0.00020999,2]
[315871022,1709230248110,-737.81,0.00020999,2]
[315871023,1709230248119,-737.81,0.00020999,2]
[315871024,1709230248128,-737.81,0.00020999,2]
[315871025,1709230248138,-737.81,0.00020999,2]
[315871026,1709230248147,-737.81,0.00020999,2]
[315871027,1709230248157,-737.81,0.00020999,2]
[315871028,1709230248167,-737.88592653,0.00020999,2]
[315871029,1709230248176,-166.47764486,0.00020999,2]
[315871030,1709230248186,-619.6998271,0.00020999,2]
[315871031,1709230248195,-500.0,0.00020999,2]
[315871032,1709230248205,-500.0,0.00020999,2]
[315871033,1709230248215,-500.0,0.00020999,2]
[315871034,1709230248224,-500.0,0.00020999,2]
[315871035,1709230248233,-500.0,0.00020999,2]
[315871036,1709230248242,-500.0,0.00020999,2]
[315871037,1709230248253,-500.0,0.00020999,2]
[315871038,1709230248262,-500.0,0.00020999,2]
[315871039,1709230248272,-500.0,0.00020999,2]
[315871040,1709230248281,-389.98145352,0.00020999,2]
[315871041,1709230248291,-500.0,0.00020999,2]
[315871042,1709230248300,-187.50526543,0.00020999,2]
[315871043,1709230248310,-500.0,0.00020999,2]
[315871044,1709230248319,-500.0,0.00020999,2]
[315871045,1709230248329,-500.0,0.00020999,2]
[315871046,1709230248338,-500.0,0.00020999,2]
[315871047,1709230248347,-500.0,0.00020999,2]
[315871048,1709230248358,-500.0,0.00020999,2]
[315871049,1709230248367,-387.31795534,0.00020999,2]
[315871050,1709230248377,-500.0,0.00020999,2]
[315871051,1709230248391,-500.0,0.00020999,2]
[315871052,1709230248402,-500.0,0.00020999,2]
[315871053,1709230248411,-500.0,0.00020999,2]
[315871054,1709230248421,-500.0,0.00020999,2]
[315871055,1709230248430,-321.12256873,0.00020999,2]
[315871056,1709230248439,-72339.60581632,0.00021,2]
[315871057,1709230248453,-1782.86718193,0.00021,2]
[315871058,1709230248465,-8260.87682648,0.00021,2]
[315871059,1709230248476,-2726.13877643,0.00021,2]
[315871060,1709230248487,-3730.41376021,0.00021,2]
[315871061,1709230248503,-2311.3043524,0.00021,2]
[315871062,1709230248516,-268.1535,0.00021,2]
[315871063,1709230248530,-470.50335268,0.00021,2]
[315871133,1709231438645,-321.40419734,0.0001842,2]
[315871134,1709231438655,-1121.90695406,0.00018421,2]
[315871135,1709231438664,-697.14971646,0.00018421,2]
[315871136,1709231438673,-307.39973337,0.00018421,2]
[315871137,1709231438684,-1079.67786944,0.00018422,2]
[315871138,1709231438694,-883.48769579,0.00018423,2]
[315871139,1709231438703,-186.23200973,0.00018423,2]
[315871140,1709231438713,-2432.66718521,0.00018424,2]
[315871141,1709231438722,-12041.45871416,0.0001845,2]
[315871142,1709231438734,-5501.03660943,0.0001845,2]
[315871143,1709231438749,-7357.50467641,0.0001845,2]
[315871144,1709231438759,-211.70163637,0.000188,2]
[315871145,1709231438768,-616.84691448,0.000189,2]
[315871146,1709231438780,-155.0,0.0002,2]
[315871147,1709231438790,-1701.69,0.00020176,3]
[315871148,1709231438799,-1418.07,0.00020176,3]
[315871149,1709231438809,-20840.0,0.00020185,2]
[315871150,1709231438820,-556.05980528,0.00020186,5]
[315871151,1709231438829,-5000.0,0.00020186,5]
[315871152,1709231438839,-5000.0,0.00020186,5]
[315871153,1709231438849,-5000.0,0.00020186,5]
[315871154,1709231438860,-1864.3261562,0.00020186,5]
[315871155,1709231438870,-1137.06560807,0.00020186,5]
[315871156,1709231438879,-210.49,0.00020537,3]
[315871157,1709231438889,-541.27,0.00020537,3]
[315871158,1709231438898,-500.0,0.00020547,2]
[315871159,1709231438907,-409.01335916,0.00020547,2]
[315871160,1709231438916,-500.0,0.00020547,2]
[315871161,1709231438926,-632.13,0.00020547,2]
[315871162,1709231438935,-500.0,0.00020547,2]
[315871163,1709231438945,-500.0,0.00020547,2]
[315871164,1709231438954,-496.43184404,0.00020547,2]
[315871171,1709231440836,-1069.88188367,0.00020176,3]
[315871172,1709231440850,-111.84811633,0.00020176,3]
[315871173,1709231440866,-3.56815596,0.00020547,2]
[315871174,1709231440876,-500.0,0.00020547,2]
[315871175,1709231440887,-635.46,0.00020547,2]
[315871176,1709231440897,-500.0,0.00020547,2]
[315871177,1709231440906,-500.0,0.00020547,2]
[315871178,1709231440916,-635.06,0.00020547,2]
[315871179,1709231440925,-500.0,0.00020547,2]
[315871180,1709231440934,-500.0,0.00020547,2]
[315871181,1709231440945,-500.0,0.00020547,2]
[315871182,1709231440954,-347.6,0.00020547,2]
[315871183,1709231440963,-500.0,0.00020547,2]
[315871184,1709231440972,-570.2,0.00020547,2]
[315871185,1709231440982,-500.0,0.00020547,2]
[315871186,1709231440992,-423.53288608,0.00020547,2]
[315871187,1709231441004,-500.0,0.00020547,2]
[315871188,1709231441014,-500.0,0.00020547,2]
[315871189,1709231441023,-500.0,0.00020547,2]
[315871190,1709231441033,-500.0,0.00020547,2]
[315871191,1709231441042,-622.01,0.00020547,2]
[315871192,1709231441051,-586.89,0.00020547,2]
[315871193,1709231441061,-500.0,0.00020547,2]
[315871194,1709231441070,-619.00190312,0.00020547,2]
[315871195,1709231441080,-506.5975492,0.00020547,2]
[315871196,1709231441089,-500.0,0.00020547,2]
[315871197,1709231441098,-500.0,0.00020547,2]
[315871198,1709231441107,-500.0,0.00020547,2]
[315871199,1709231441117,-500.0,0.00020547,2]
[315871200,1709231441126,-500.0,0.00020547,2]
[315871201,1709231441136,-500.0,0.00020547,2]
[315871202,1709231441145,-500.0,0.00020547,2]
[315871203,1709231441155,-500.0,0.00020547,2]
[315871204,1709231441164,-500.0,0.00020547,2]
[315871205,1709231441173,-500.0,0.00020547,2]
[315871206,1709231441183,-500.0,0.00020547,2]
[315871207,1709231441192,-500.0,0.00020547,2]
[315871208,1709231441202,-500.0,0.00020547,2]
[315871209,1709231441212,-500.0,0.00020547,2]
[315871210,1709231441222,-333.01729729,0.00020547,2]
[315871211,1709231441232,-500.0,0.00020547,2]
[315871212,1709231441242,-500.0,0.00020547,2]
[315871213,1709231441256,-508.86326725,0.00020547,2]
[315871374,1709232632055,-186.23200973,0.00017896,2]
[315871376,1709232632065,-309.36799027,0.00017897,2]
[315871378,1709232632077,-387.78172619,0.00017897,2]
[315871380,1709232632086,-321.40419734,0.00017897,2]
[315871382,1709232632101,-307.6530617,0.00017897,2]
[315871384,1709232632110,-883.48769579,0.00017898,2]
[315871386,1709232632119,-747.93796937,0.00018,2]
[315871388,1709232632129,-411.23127632,0.000189,2]
[315871390,1709232632145,-4029.2405798,0.00019354,2]
[315871392,1709232632155,-167.56146207,0.00020086,2]
[315871394,1709232632165,-20840.0,0.00020185,2]
[315871396,1709232632175,-5000.0,0.00020186,5]
[315871398,1709232632185,-214.9958699,0.000202,2]
[315871400,1709232632195,-153.0,0.000202,2]
[315871402,1709232632205,-244.0041301,0.000202,2]
[315871404,1709232632215,-887.27171782,0.0002026,2]
[315871406,1709232632224,-1000.0,0.00020299,5]
[315871409,1709232632234,-1000.0,0.00020299,5]
[315871412,1709232632244,-1006.0,0.00020381,2]
[315871415,1709232632253,-306.0,0.000204,2]
[315871418,1709232632263,-153.0,0.000204,2]
[315871421,1709232632272,-153.0,0.000204,2]
[315871424,1709232632281,-175.4,0.00020536,3]
[315871427,1709232632291,-526.25,0.00020536,3]
[315871430,1709232632301,-1945.23,0.00020536,3]
[315871432,1709232632310,-1621.02,0.00020536,3]
[315871433,1709232632319,-1350.85,0.00020536,3]
[315871434,1709232632328,-1125.71,0.00020536,3]
[315871435,1709232632337,-427.3819055,0.00020545,2]
[315871436,1709232632345,-500.0,0.00020545,2]
[315871437,1709232632354,-225.0,0.00020545,2]
[315871439,1709232632363,-493.58847924,0.00020545,2]
[315871441,1709232632372,-406.00363274,0.00020545,2]
[315871443,1709232632381,-369.28776619,0.00020545,2]
[315871444,1709232632394,-500.0,0.00020545,2]
[315871446,1709232632403,-334.90389526,0.00020545,2]
[315871447,1709232632412,-27975.14601229,0.00020546,2]
[315871507,1709232638664,-163.38875591,0.00017797,2]
[315871509,1709232638674,-1801.72621849,0.00020546,2]
[315871511,1709232638686,-976.03131657,0.00020546,2]
[315871513,1709232638697,-2687.57210809,0.00020546,2]
[315871515,1709232638708,-2563.84407922,0.00020546,2]
[315871518,1709232638719,-6732.58,0.00020546,2]
[315871598,1709232641108,-938.09,0.00020536,3]
[315871599,1709232641118,-4263.60915455,0.00020546,2]
[315871600,1709232641132,-1979.42258337,0.00020546,2]
[315871601,1709232641148,-808.8343163,0.00020546,2]
[315871626,1709232643021,-10669.11949342,0.00020546,2]
[315871627,1709232643033,-302.61772616,0.00020546,2]
[315871628,1709232643044,-1006.0,0.00020546,2]
[315871629,1709232643056,-329.56943402,0.00020546,2]
[315871630,1709232643067,-12163.6,0.00020546,2]
[315871651,1709232761667,-500.0,0.00021917,30]
[315871652,1709232761695,-500.0,0.00021917,30]
[315871653,1709232761721,-462.49501128,0.00021917,30]
[315871710,1709233838174,-321.40419734,0.00018121,2]
[315871712,1709233838184,-186.23200973,0.00018121,2]
[315871713,1709233838193,-623.28164114,0.00018122,2]
[315871714,1709233838202,-697.14971646,0.00018123,2]
[315871715,1709233838212,-307.6530617,0.00018124,2]
[315871716,1709233838221,-883.48769579,0.00018124,2]
[315871717,1709233838231,-182.62498549,0.00018179,2]
[315871718,1709233838240,-274.15418422,0.00019817,2]
[315871719,1709233838249,-531.94035449,0.0001999,2]
[315871720,1709233838258,-155.0,0.0002,2]
[315871721,1709233838268,-18193.60008702,0.00020185,2]
[315871722,1709233838279,-2646.39991298,0.00020185,2]
[315871723,1709233838289,-44.74008703,0.00020186,5]
[315871756,1709233841171,-314.90122781,0.00020186,5]
[315871757,1709233841183,-356.81735764,0.00020186,5]
[315871758,1709233841192,-659.86756683,0.00020299,2]
[315871759,1709233841202,-200.6643816,0.000203,2]
[315871760,1709233841211,-200.6643816,0.000203,2]
[315871761,1709233841220,-200.6643816,0.000203,2]
[315871762,1709233841229,-4471.50193073,0.00020446,2]
[315871763,1709233841241,-8719.62455238,0.00020446,2]
[315871764,1709233841250,-321.02799713,0.00020447,2]
[315871765,1709233841259,-200.6643816,0.000205,2]
[315871767,1709233841268,-200.6643816,0.000205,2]
[315871768,1709233841277,-216186.17206721,0.00020546,2]
[315871769,1709233841287,-500.0,0.00020547,2]
[315871770,1709233841296,-500.0,0.00020547,2]
[315871771,1709233841307,-500.0,0.00020547,2]
[315871772,1709233841316,-190.55274162,0.00020547,2]
[315871773,1709233841326,-500.0,0.00020547,2]
[315871774,1709233841335,-500.0,0.00020547,2]
[315871775,1709233841345,-500.0,0.00020547,2]
[315871776,1709233841354,-500.0,0.00020547,2]
[315871777,1709233841363,-500.0,0.00020547,2]
[315871778,1709233841373,-500.0,0.00020547,2]
[315871779,1709233841382,-403.61859012,0.00020547,2]
[315871780,1709233841392,-500.0,0.00020547,2]
[315871781,1709233841401,-500.0,0.00020547,2]
[315871782,1709233841411,-500.0,0.00020547,2]
[315871783,1709233841420,-265.52624922,0.00020547,2]
[315871784,1709233841429,-500.0,0.00020547,2]
[315871785,1709233841439,-500.0,0.00020547,2]
[315871786,1709233841451,-500.0,0.00020547,2]
[315871787,1709233841460,-500.0,0.00020547,2]
[315871788,1709233841475,-451.94,0.00020547,2]
[315871789,1709233841484,-500.0,0.00020547,2]
[315871790,1709233841495,-500.0,0.00020547,2]
[315871791,1709233841505,-244.59,0.00020547,2]
[315871792,1709233841515,-500.0,0.00020547,2]
[315871793,1709233841524,-500.0,0.00020547,2]
[315871794,1709233841534,-500.0,0.00020547,2]
[315871795,1709233841543,-500.0,0.00020547,2]
[315871796,1709233841553,-500.0,0.00020547,2]
[315871797,1709233841563,-398.21029264,0.00020547,2]
[315871798,1709233841572,-500.0,0.00020547,2]
[315871799,1709233841582,-500.0,0.00020547,2]
[315871800,1709233841591,-500.0,0.00020547,2]
[315871801,1709233841600,-343.98,0.00020547,2]
[315871802,1709233841610,-500.0,0.00020547,2]
[315871803,1709233841619,-500.48929891,0.00020547,2]
[315871804,1709233841629,-606.40277477,0.00020547,2]
[315871805,1709233841639,-500.0,0.00020547,2]
[315871806,1709233841648,-500.0,0.00020547,2]
[315871807,1709233841657,-500.0,0.00020547,2]
[315871809,1709233841666,-449.86323283,0.00020547,2]
[315871810,1709233841675,-500.0,0.00020547,2]
[315871811,1709233841684,-500.0,0.00020547,2]
[315871812,1709233841693,-500.9,0.00020547,2]
[315871814,1709233841702,-500.0,0.00020547,2]
[315871815,1709233841711,-500.0,0.00020547,2]
[315871816,1709233841720,-500.0,0.00020547,2]
[315871817,1709233841729,-500.0,0.00020547,2]
[315871818,1709233841739,-500.0,0.00020547,2]
[315871819,1709233841749,-500.0,0.00020547,2]
[315871820,1709233841759,-500.0,0.00020547,2]
[315871821,1709233841767,-500.0,0.00020547,2]
[315871822,1709233841776,-500.0,0.00020547,2]
[315871823,1709233841786,-500.0,0.00020547,2]
[315871824,1709233841795,-500.0,0.00020547,2]
[315871825,1709233841805,-500.0,0.00020547,2]
[315871826,1709233841815,-500.0,0.00020547,2]
[315871827,1709233841826,-500.0,0.00020547,2]
[315871828,1709233841836,-500.0,0.00020547,2]
[315871829,1709233841845,-500.0,0.00020547,2]
[315871831,1709233841854,-500.0,0.00020547,2]
[315871833,1709233841864,-500.0,0.00020547,2]
[315871835,1709233841873,-500.0,0.00020547,2]
[315871836,1709233841882,-500.0,0.00020547,2]
[315871838,1709233841891,-500.0,0.00020547,2]
[315871840,1709233841901,-500.0,0.00020547,2]
[315871842,1709233841910,-500.0,0.00020547,2]
[315871844,1709233841919,-500.0,0.00020547,2]
[315871846,1709233841929,-500.0,0.00020547,2]
[315871848,1709233841938,-260.25765248,0.00020547,2]
[315871850,1709233841947,-500.0,0.00020547,2]
[315871852,1709233841956,-500.0,0.00020547,2]
[315871854,1709233841965,-500.0,0.00020547,2]
[315871856,1709233841974,-500.0,0.00020547,2]
[315871858,1709233841983,-500.0,0.00020547,2]
[315871860,1709233841993,-572.63623877,0.00020547,2]
[315871861,1709233842002,-500.0,0.00020547,2]
[315871863,1709233842011,-500.0,0.00020547,2]
[315871865,1709233842020,-269.69,0.00020547,2]
[315871867,1709233842029,-500.0,0.00020547,2]
[315871869,1709233842038,-500.0,0.00020547,2]
[315871871,1709233842048,-500.0,0.00020547,2]
[315871872,1709233842060,-500.0,0.00020547,2]
[315871874,1709233842069,-217.67,0.00020547,2]
[315871876,1709233842078,-500.0,0.00020547,2]
[315871878,1709233842087,-500.0,0.00020547,2]
[315871880,1709233842096,-500.0,0.00020547,2]
[315871882,1709233842105,-500.0,0.00020547,2]
[315871884,1709233842115,-500.0,0.00020547,2]
[315871886,1709233842124,-500.0,0.00020547,2]
[315871888,1709233842133,-500.0,0.00020547,2]
[315871890,1709233842142,-500.0,0.00020547,2]
[315871891,1709233842151,-500.0,0.00020547,2]
[315871893,1709233842160,-500.0,0.00020547,2]
[315871895,1709233842169,-500.0,0.00020547,2]
[315871897,1709233842179,-500.0,0.00020547,2]
[315871899,1709233842188,-500.0,0.00020547,2]
[315871900,1709233842197,-500.0,0.00020547,2]
[315871901,1709233842207,-500.0,0.00020547,2]
[315871902,1709233842216,-500.0,0.00020547,2]
[315871903,1709233842226,-500.0,0.00020547,2]
[315871904,1709233842235,-500.0,0.00020547,2]
[315871905,1709233842244,-500.0,0.00020547,2]
[315871906,1709233842253,-500.0,0.00020547,2]
[315871907,1709233842263,-500.0,0.00020547,2]
[315871908,1709233842272,-500.0,0.00020547,2]
[315871909,1709233842281,-500.0,0.00020547,2]
[315871910,1709233842292,-500.0,0.00020547,2]
[315871911,1709233842303,-500.0,0.00020547,2]
[315871912,1709233842314,-333.96,0.00020547,2]
[315871913,1709233842323,-500.0,0.00020547,2]
[315871914,1709233842333,-500.0,0.00020547,2]
[315871915,1709233842342,-500.0,0.00020547,2]
[315871916,1709233842351,-500.0,0.00020547,2]
[315871917,1709233842360,-500.0,0.00020547,2]
[315871918,1709233842370,-410.4,0.00020547,2]
[315871919,1709233842379,-515.57,0.00020547,2]
[315871920,1709233842388,-500.0,0.00020547,2]
[315871921,1709233842397,-500.0,0.00020547,2]
[315871922,1709233842407,-500.0,0.00020547,2]
[315871923,1709233842416,-500.0,0.00020547,2]
[315871924,1709233842425,-500.0,0.00020547,2]
[315871925,1709233842436,-500.0,0.00020547,2]
[315871926,1709233842446,-500.0,0.00020547,2]
[315871927,1709233842456,-500.0,0.00020547,2]
[315871928,1709233842468,-500.0,0.00020547,2]
[315871929,1709233842478,-500.0,0.00020547,2]
[315871930,1709233842487,-500.0,0.00020547,2]
[315871931,1709233842498,-500.0,0.00020547,2]
[315871932,1709233842507,-500.0,0.00020547,2]
[315871933,1709233842517,-500.0,0.00020547,2]
[315871934,1709233842527,-419.87,0.00020547,2]
[315871935,1709233842536,-500.0,0.00020547,2]
[315871936,1709233842546,-500.0,0.00020547,2]
[315871937,1709233842557,-500.0,0.00020547,2]
[315871938,1709233842566,-500.0,0.00020547,2]
[315871939,1709233842576,-500.0,0.00020547,2]
[315871940,1709233842585,-500.0,0.00020547,2]
[315871941,1709233842595,-605.87,0.00020547,2]
[315871942,1709233842604,-500.0,0.00020547,2]
[315871943,1709233842613,-500.0,0.00020547,2]
[315871944,1709233842623,-500.0,0.00020547,2]
[315871945,1709233842633,-500.0,0.00020547,2]
[315871946,1709233842643,-500.0,0.00020547,2]
[315871947,1709233842652,-500.0,0.00020547,2]
[315871948,1709233842663,-500.0,0.00020547,2]
[315871949,1709233842673,-500.0,0.00020547,2]
[315871950,1709233842682,-500.0,0.00020547,2]
[315871951,1709233842692,-500.0,0.00020547,2]
[315871952,1709233842701,-500.0,0.00020547,2]
[315871953,1709233842711,-339.1,0.00020547,2]
[315871954,1709233842720,-500.0,0.00020547,2]
[315871955,1709233842729,-500.0,0.00020547,2]
[315871956,1709233842738,-500.0,0.00020547,2]
[315871957,1709233842748,-500.0,0.00020547,2]
[315871958,1709233842757,-500.0,0.00020547,2]
[315871959,1709233842766,-500.0,0.00020547,2]
[315871960,1709233842776,-162.33,0.00020547,2]
[315871961,1709233842785,-408.41954872,0.00020547,2]
[315871962,1709233842800,-91.58045128,0.00020547,2]
[315871963,1709233842812,-500.0,0.00020547,2]
[315871964,1709233842822,-500.0,0.00020547,2]
[315871965,1709233842831,-500.0,0.00020547,2]
[315871966,1709233842935,-500.0,0.00020547,2]
[315871967,1709233842946,-500.0,0.00020547,2]
[315871968,1709233842956,-500.0,0.00020547,2]
[315871969,1709233842965,-500.0,0.00020547,2]
[315871970,1709233842974,-152.5,0.00020547,2]
[315871971,1709233842983,-500.0,0.00020547,2]
[315871972,1709233842993,-592.77825968,0.00020547,2]
[315871973,1709233843002,-500.0,0.00020547,2]
[315871974,1709233843011,-500.0,0.00020547,2]
[315871975,1709233843020,-271.38,0.00020547,2]
[315871976,1709233843030,-321.02799713,0.0002056,2]
[315871977,1709233843039,-321.02799713,0.00020673,2]
[315871978,1709233843048,-1000.0,0.00020694,2]
[315871979,1709233843058,-321.02799713,0.00020786,2]
[315871980,1709233843067,-1000.0,0.00020842,2]
[315871981,1709233843077,-8232.76275787,0.0002089,2]
[315871982,1709233843086,-581.11,0.00020898,2]
[315871983,1709233843095,-199.40844968,0.00020898,2]
[315871984,1709233843104,-500.0,0.00020898,2]
[315871985,1709233843113,-500.0,0.00020898,2]
[315871986,1709233843122,-500.0,0.00020898,2]
[315871987,1709233843131,-500.0,0.00020898,2]
[315871988,1709233843140,-642.51,0.00020898,2]
[315871989,1709233843149,-500.0,0.00020898,2]
[315871990,1709233843159,-500.0,0.00020898,2]
[315871991,1709233843168,-321.02799713,0.00020899,2]
[315871992,1709233843177,-1131.19742043,0.000209,2]
[315871993,1709233843185,-1000.0,0.00020991,2]
[315871994,1709233843195,-500.0,0.00020997,2]
[315871995,1709233843204,-500.0,0.00020997,2]
[315871996,1709233843213,-500.0,0.00020997,2]
[315871997,1709233843222,-500.0,0.00020997,2]
[315871998,1709233843231,-500.0,0.00020997,2]
[315871999,1709233843240,-500.0,0.00020997,2]
[315872000,1709233843250,-155.19710032,0.00020998,2]
[315872001,1709233843259,-238.50130044,0.00020998,2]
[315872002,1709233843268,-703.08553243,0.00020998,2]
[315872003,1709233843277,-155.42559837,0.00020998,2]
[315872004,1709233843286,-1863.17330942,0.00020998,2]
[315872005,1709233843295,-4700.60014085,0.00020998,2]
[315872006,1709233843304,-396.04964715,0.00020998,2]
[315872007,1709233843315,-400.75162755,0.00020998,2]
[315872008,1709233843324,-251.59518372,0.00020998,2]
[315872009,1709233843333,-572.40758911,0.00020998,2]
[315872010,1709233843342,-442.18,0.00020998,2]
[315872011,1709233843352,-436.35,0.00020998,2]
[315872012,1709233843361,-500.0,0.00020998,2]
[315872013,1709233843371,-500.0,0.00020998,2]
[315872014,1709233843380,-500.0,0.00020998,2]
[315872015,1709233843389,-500.0,0.00020998,2]
[315872016,1709233843399,-500.0,0.00020998,2]
[315872017,1709233843408,-500.0,0.00020998,2]
[315872018,1709233843417,-500.0,0.00020998,2]
[315872019,1709233843427,-613.81283474,0.00020998,2]
[315872020,1709233843436,-189.33,0.00020998,2]
[315872021,1709233843447,-500.0,0.00020998,2]
[315872022,1709233843457,-500.0,0.00020998,2]
[315872023,1709233843470,-500.0,0.00020998,2]
[315872024,1709233843481,-500.0,0.00020998,2]
[315872025,1709233843492,-500.0,0.00020998,2]
[315872026,1709233843502,-500.0,0.00020998,2]
[315872027,1709233843513,-500.0,0.00020998,2]
[315872028,1709233843522,-500.0,0.00020998,2]
[315872029,1709233843532,-500.0,0.00020998,2]
[315872030,1709233843542,-500.0,0.00020998,2]
[315872031,1709233843551,-500.0,0.00020998,2]
[315872032,1709233843562,-500.0,0.00020998,2]
[315872034,1709233843571,-500.0,0.00020998,2]
[315872036,1709233843580,-500.0,0.00020998,2]
[315872038,1709233843589,-1591.18712695,0.00020999,2]
[315872040,1709233843599,-122.42771206,0.00020999,2]
[315872041,1709233843611,-377.57228794,0.00020999,2]
[315872042,1709233843621,-500.0,0.00020999,2]
[315872043,1709233843630,-500.0,0.00020999,2]
[315872045,1709233843639,-500.0,0.00020999,2]
[315872046,1709233843648,-500.0,0.00020999,2]
[315872048,1709233843658,-500.0,0.00020999,2]
[315872050,1709233843667,-500.0,0.00020999,2]
[315872051,1709233843677,-500.0,0.00020999,2]
[315872052,1709233843686,-607.99020162,0.00020999,2]
[315872053,1709233843695,-500.0,0.00020999,2]
[315872054,1709233843704,-500.0,0.00020999,2]
[315872055,1709233843713,-500.0,0.00020999,2]
[315872056,1709233843722,-500.0,0.00020999,2]
[315872057,1709233843732,-500.0,0.00020999,2]
[315872058,1709233843741,-500.0,0.00020999,2]
[315872059,1709233843751,-500.0,0.00020999,2]
[315872060,1709233843760,-500.0,0.00020999,2]
[315872061,1709233843770,-500.0,0.00020999,2]
[315872062,1709233843779,-359.11698602,0.00020999,2]
[315872063,1709233843788,-500.0,0.00020999,2]